bitfinex/quotes_SOLUSD_20220129
["timestamp","ask_amount","ask_price","bid_price","bid_amount"]
[1643454220452,0.25,96.673,96.587,1.43311653]
[1643454220752,0.25,96.673,96.588,0.25]
[1643454221753,0.25,96.673,96.588,1.68311653]
[1643454221954,0.25,96.673,96.588,1.43311653]
[1643454222255,0.25,96.673,96.589,1.68311653]
[1643454222658,6.0,96.664,96.589,1.68311653]
[1643454222856,0.25,96.663,96.589,0.25]
[1643454223460,0.25,96.663,96.591,1.43311653]
[1643454223759,0.25,96.663,96.589,1.43311653]
[1643454224561,6.25,96.663,96.586,1.43311653]
[1643454224960,6.25,96.663,96.578,1.43311653]
[1643454225159,6.25,96.663,96.577,1.43311653]
[1643454225362,6.25,96.663,96.58,1.43311653]
[1643454225561,6.25,96.663,96.56,15.529]
[1643454225562,6.25,96.663,96.578,1.43311653]
[1643454225762,6.25,96.663,96.56,15.529]
[1643454225763,6.25,96.663,96.579,0.25]
[1643454225959,6.25,96.663,96.577,1.43311653]
[1643454226665,6.0,96.66,96.575,1.43311653]
[1643454226862,40.70864757,96.659,96.575,1.43311653]
[1643454227061,6.0,96.649,96.574,1.43311653]
[1643454227261,0.25,96.648,96.574,1.43311653]
[1643454227665,0.25,96.648,96.57,1.43311653]
[1643454227962,6.25,96.648,96.569,1.43311653]
[1643454228163,6.25,96.648,96.566,1.43311653]
[1643454228362,6.25,96.648,96.565,1.43311653]
[1643454228763,6.25,96.648,96.567,1.43311653]
[1643454229265,6.25,96.648,96.568,1.43311653]
[1643454229463,6.25,96.648,96.578,1.43311653]
[1643454229862,6.25,96.648,96.579,1.43311653]
[1643454230065,6.25,96.648,96.578,1.43311653]
[1643454230864,6.25,96.648,96.56,15.529]
[1643454230865,6.25,96.648,96.579,1.43311653]
[1643454231066,6.25,96.648,96.578,1.43311653]
[1643454231668,6.25,96.648,96.579,1.43311653]
[1643454232068,6.25,96.648,96.587,1.43311653]
[1643454232273,6.25,96.648,96.588,0.25]
[1643454232467,6.25,96.648,96.593,1.43311653]
[1643454232666,6.25,96.648,96.595,1.43311653]
[1643454232866,6.25,96.648,96.596,0.25]
[1643454233168,6.25,96.648,96.596,1.68311653]
[1643454233570,6.25,96.648,96.597,1.43311653]
[1643454233769,6.25,96.648,96.6,1.43311653]
[1643454233969,6.25,96.648,96.592,1.43311653]
[1643454234172,6.25,96.648,96.59,1.43311653]
[1643454234671,6.25,96.648,96.592,1.43311653]
[1643454236272,40.45864757,96.659,96.593,0.25]
[1643454236472,1.41837049,96.692,96.593,0.25]
[1643454236473,23.816,96.689,96.593,0.25]
[1643454236675,23.96397049,96.709,96.609,1.43311653]
[1643454236876,22.5456,96.709,96.614,1.43311653]
[1643454237076,22.5456,96.709,96.624,6.0]
[1643454237275,22.5456,96.709,96.635,1.43311653]
[1643454237475,22.5456,96.709,96.625,0.25]
[1643454237476,32.80042488,96.708,96.633,1.43311653]
[1643454237673,32.80042488,96.708,96.634,1.43311653]
[1643454237876,32.80042488,96.708,96.635,0.25]
[1643454238074,32.80042488,96.708,96.633,1.43311653]
[1643454238296,32.80042488,96.708,96.634,0.25]
[1643454238698,112.8,96.704,96.574,1.44255923]
[1643454238897,61.54,96.695,96.535,549.1653891]
[1643454239096,188.55,96.63,96.535,215.7453891]
[1643454239301,0.30258156,96.617,96.535,170.9744891]
[1643454239500,102.9,96.609,96.471,3.67961]
[1643454239702,126.8174,96.609,96.471,3.67961]
[1643454239898,102.9,96.598,96.472,10.33525676]
[1643454240097,102.9,96.587,96.472,10.33525676]
[1643454240297,37.82409072,96.586,96.472,10.33525676]
[1643454240498,6.0,96.576,96.472,10.33525676]
[1643454240698,37.33852358,96.569,96.472,10.33525676]
[1643454240901,0.25,96.568,96.472,10.33525676]
[1643454241102,6.0,96.559,96.473,102.9]
[1643454241404,37.33852358,96.569,96.473,103.15]
[1643454241598,37.33852358,96.569,96.483,6.0]
[1643454241800,37.33852358,96.569,96.484,103.15]
[1643454241801,0.25,96.568,96.484,103.15]
[1643454242001,0.25,96.568,96.484,102.9]
[1643454242199,0.25,96.568,96.485,0.25]
[1643454243000,6.0,96.559,96.49,15.54]
[1643454243201,6.0,96.559,96.491,1.25335816]
[1643454243400,0.25,96.558,96.491,1.25335816]
[1643454243802,37.33852358,96.569,96.491,1.25335816]
[1643454244302,0.25,96.568,96.491,1.25335816]
[1643454245804,0.25,96.568,96.492,0.25]
[1643454247208,37.33852358,96.569,96.492,0.25]
[1643454247406,0.25,96.568,96.492,0.25]
[1643454247605,37.33852358,96.569,96.492,0.25]
[1643454248708,37.33852358,96.569,96.491,1.25335816]
[1643454248909,0.25,96.568,96.491,1.25335816]
[1643454250113,0.25,96.568,96.492,0.25]
[1643454250712,37.33852358,96.569,96.492,0.25]
[1643454252125,0.25,96.568,96.492,0.25]
[1643454255115,0.25,96.568,96.502,102.9]
[1643454255315,0.25,96.568,96.503,0.25]
[1643454255815,15.08,96.56,96.503,0.25]
[1643454256216,0.25,96.559,96.503,0.25]
[1643454257616,0.25,96.559,96.506,6.0]
[1643454257819,0.25,96.559,96.507,0.25]
[1643454259019,0.25,96.559,96.514,6.0]
[1643454259318,0.25,96.559,96.516,6.0]
[1643454261721,15.08,96.56,96.51,6.0]
[1643454262322,15.08,96.56,96.511,0.25]
[1643454263121,15.08,96.56,96.511,6.25]
[1643454263322,0.25,96.559,96.511,6.25]
[1643454263723,5.08,96.56,96.511,6.25]
[1643454263922,15.08,96.59,96.532,2.93663867]
[1643454264323,15.08,96.59,96.533,0.25]
[1643454264728,56.89787803,96.59,96.534,2.93663867]
[1643454265126,56.89787803,96.59,96.535,0.25]
[1643454265529,15.08,96.59,96.536,2.93663867]
[1643454265925,15.08,96.59,96.537,0.25]
[1643454266324,15.08,96.59,96.538,2.93663867]
[1643454266724,15.08,96.59,96.539,0.25]
[1643454267126,15.08,96.59,96.54,2.93663867]
[1643454267326,15.08,96.59,96.541,0.25]
[1643454267727,15.08,96.59,96.542,2.93663867]
[1643454268026,15.08,96.61,96.542,2.93663867]
[1643454268232,15.08,96.63,96.553,102.9]
[1643454268426,15.08,96.66,96.554,61.54]
[1643454268626,15.08,96.68,96.564,6.0]
[1643454268926,44.50994136,96.679,96.572,2.85820113]
[1643454269126,44.50994136,96.679,96.6,15.522]
[1643454269325,44.50994136,96.679,96.601,2.25591224]
[1643454269525,44.50994136,96.679,96.611,6.0]
[1643454269926,44.50994136,96.679,96.612,0.25]
[1643454270228,44.50994136,96.679,96.612,9.18663867]
[1643454270426,44.50994136,96.679,96.613,2.93663867]
[1643454270625,15.08,96.7,96.623,6.0]
[1643454270831,0.25,96.699,96.624,0.25]
[1643454271026,0.25,96.699,96.63,6.0]
[1643454271228,24.6218,96.728,96.631,103.15]
[1643454271427,6.0,96.718,96.634,6.0]
[1643454271628,36.99587643,96.717,96.635,9.58270268]
[1643454271828,36.99587643,96.717,96.636,0.25]
[1643454272227,36.99587643,96.717,96.635,12.51934135]
[1643454272428,36.99587643,96.717,96.635,9.58270268]
[1643454272627,36.99587643,96.717,96.63,15.518]
[1643454272830,112.8,96.71,96.623,6.0]
[1643454273028,6.0,96.7,96.598,2.93663867]
[1643454273228,49.633,96.699,96.585,2.93663867]
[1643454273630,45.76275432,96.688,96.586,8.93755124]
[1643454273829,45.76275432,96.688,96.587,102.9]
[1643454274029,45.76275432,96.688,96.59,15.525]
[1643454274431,45.76275432,96.688,96.601,2.65106368]
[1643454274830,45.76275432,96.688,96.602,3.18663867]
[1643454275030,45.76275432,96.688,96.612,6.0]
[1643454275432,45.76275432,96.688,96.613,0.25]
[1643454275630,45.76275432,96.688,96.613,9.18663867]
[1643454276031,45.76275432,96.688,96.614,2.93663867]
[1643454276432,45.76275432,96.688,96.615,0.25]
[1643454276832,45.76275432,96.688,96.617,8.93755124]
[1643454277229,45.76275432,96.688,96.618,3.18663867]
[1643454277630,45.76275432,96.688,96.619,2.93663867]
[1643454277932,0.25,96.687,96.61,15.521]
[1643454278230,6.0,96.678,96.56,66.831]
[1643454278429,6.0,96.678,96.547,2.85820113]
[1643454278629,6.0,96.67,96.582,3.0]
[1643454278831,15.08,96.66,96.531,0.00643728]
[1643454279030,6.0,96.65,96.531,0.00643728]
[1643454279228,15.08,96.64,96.531,0.00643728]
[1643454279630,34.06345112,96.629,96.531,0.00643728]
[1643454279829,25.2312,96.628,96.531,0.00643728]
[1643454280032,6.0,96.618,96.531,0.00643728]
[1643454280432,0.25,96.617,96.531,0.00643728]
[1643454280855,15.08,96.61,96.531,0.00643728]
[1643454281038,6.0,96.6,96.531,0.00643728]
[1643454281238,24.8587,96.599,96.531,0.00643728]
[1643454281435,46.50827936,96.598,96.531,0.00643728]
[1643454281635,6.0,96.588,96.531,0.00643728]
[1643454281838,0.25,96.587,96.531,0.00643728]
[1643454283435,15.08,96.6,96.531,0.00643728]
[1643454283436,15.08,96.63,96.532,2.92457775]
[1643454283636,22.5892,96.659,96.543,164.44]
[1643454283836,15.08,96.67,96.544,0.25]
[1643454284040,47.7973,96.669,96.554,102.9]
[1643454284235,47.7973,96.669,96.553,6.0]
[1643454284436,37.76534472,96.668,96.555,5.62305948]
[1643454284636,6.0,96.658,96.555,5.62305948]
[1643454284836,25.2424,96.657,96.556,2.92457775]
[1643454285138,35.35757656,96.646,96.556,2.92457775]
[1643454285339,35.35757656,96.646,96.557,0.25]
[1643454285536,6.0,96.636,96.557,0.25]
[1643454285736,6.0,96.636,96.56,15.529]
[1643454286237,6.0,96.636,96.561,3.17457775]
[1643454286636,22.8049,96.669,96.58,15.526]
[1643454286838,15.08,96.71,96.583,61.54]
[1643454287062,47.7506,96.696,96.593,6.0]
[1643454287261,47.7506,96.696,96.594,103.15]
[1643454287461,47.7506,96.696,96.594,106.07457775]
[1643454287661,15.08,96.71,96.605,102.9]
[1643454287662,34.88673402,96.695,96.605,102.9]
[1643454287865,34.88673402,96.695,96.611,105.34848173]
[1643454288062,6.0,96.685,96.611,105.34848173]
[1643454288264,34.88673402,96.695,96.612,0.25]
[1643454289164,6.0,96.685,96.612,0.25]
[1643454289361,34.88673402,96.695,96.611,2.44848173]
[1643454290863,6.0,96.685,96.612,0.25]
[1643454291262,24.3319,96.694,96.612,3.17457775]
[1643454291463,24.3319,96.694,96.613,2.92457775]
[1643454291865,24.3319,96.694,96.614,0.25]
[1643454292164,24.3319,96.694,96.62,15.519]
[1643454292365,24.3319,96.694,96.621,0.25]
[1643454293870,24.3319,96.694,96.621,103.15]
[1643454294067,24.3319,96.694,96.63,15.518]
[1643454294267,0.25,96.694,96.631,9.39013319]
[1643454294467,0.25,96.694,96.631,12.31471094]
[1643454294867,0.25,96.694,96.631,9.39013319]
[1643454295269,0.25,96.694,96.632,2.92457775]
[1643454295467,34.88673402,96.695,96.633,0.25]
[1643454295668,34.88673402,96.695,96.631,0.25]
[1643454296072,6.0,96.685,96.61,15.521]
[1643454296272,6.0,96.685,96.612,0.25]
[1643454296469,6.0,96.685,96.61,15.521]
[1643454296670,6.0,96.685,96.61,24.2772266]
[1643454297269,0.25,96.684,96.611,105.82457775]
[1643454297470,6.25,96.684,96.611,105.82457775]
[1643454297671,0.25,96.684,96.611,102.9]
[1643454297872,6.0,96.674,96.612,0.25]
[1643454298070,43.20922923,96.673,96.612,0.25]
[1643454298975,0.25,96.672,96.611,0.25]
[1643454299170,6.0,96.663,96.59,15.524]
[1643454299373,0.25,96.662,96.572,8.42578064]
[1643454299573,6.25,96.662,96.572,8.42578064]
[1643454300173,6.0,96.662,96.573,102.9]
[1643454300372,48.8732,96.672,96.581,102.9]
[1643454300575,15.08,96.71,96.592,164.44]
[1643454300773,48.5631,96.709,96.592,164.44]
[1643454300973,6.0,96.7,96.602,6.0]
[1643454301175,6.0,96.699,96.603,102.9]
[1643454301375,6.0,96.699,96.603,113.93267189]
[1643454301577,33.53174018,96.698,96.604,3.16283428]
[1643454301774,33.53174018,96.698,96.605,103.15]
[1643454301976,33.53174018,96.698,96.621,102.9]
[1643454302179,33.53174018,96.698,96.622,8.42578064]
[1643454302375,33.53174018,96.698,96.623,102.9]
[1643454302777,33.53174018,96.698,96.624,0.25]
[1643454303176,33.53174018,96.698,96.631,102.9]
[1643454303380,33.53174018,96.698,96.632,0.25]
[1643454303979,15.08,96.73,96.632,0.25]
[1643454304184,48.852,96.735,96.632,0.25]
[1643454304380,6.0,96.72,96.631,102.9]
[1643454304581,6.0,96.725,96.64,15.516]
[1643454304780,6.0,96.725,96.641,102.9]
[1643454304980,33.17425399,96.724,96.641,102.9]
[1643454305182,33.42425399,96.724,96.641,102.9]
[1643454305381,6.0,96.714,96.641,102.9]
[1643454305880,0.25,96.713,96.642,0.25]
[1643454307081,6.0,96.714,96.642,0.25]
[1643454308580,0.25,96.713,96.642,0.25]
[1643454309382,6.0,96.714,96.643,102.9]
[1643454309782,6.0,96.714,96.644,0.25]
[1643454310682,0.25,96.713,96.644,0.25]
[1643454313587,0.25,96.713,96.509,92.93776267]
[1643454313588,15.08,96.71,96.59,51.735]
[1643454313791,0.25,96.709,96.599,0.25]
[1643454313987,6.0,96.7,96.599,0.25]
[1643454314387,34.29072066,96.699,96.599,0.25]
[1643454314587,6.0,96.689,96.599,0.25]
[1643454314991,6.0,96.688,96.6,15.522]
[1643454315489,6.0,96.688,96.601,0.25]
[1643454315888,6.0,96.688,96.602,2.87625387]
[1643454316290,6.0,96.688,96.603,0.25]
[1643454316490,0.25,96.687,96.604,2.87625387]
[1643454316790,0.25,96.687,96.605,0.25]
[1643454317089,0.25,96.687,96.603,0.25]
[1643454318294,0.25,96.687,96.602,0.25]
[1643454322001,21.08,96.68,96.601,0.25]
[1643454322200,21.08,96.68,96.591,0.25]
[1643454322404,24.4093,96.679,96.592,2.87629796]
[1643454322601,6.0,96.669,96.588,2.87629796]
[1643454322803,36.00577283,96.668,96.589,9.97762405]
[1643454323003,6.0,96.658,96.59,2.87629796]
[1643454323402,6.0,96.658,96.591,0.25]
[1643454323605,6.0,96.658,96.592,2.87629796]
[1643454323805,6.0,96.658,96.593,0.25]
[1643454324003,6.0,96.658,96.592,2.87629796]
[1643454324204,0.25,96.657,96.581,2.87629796]
[1643454324611,6.0,96.65,96.565,2.85820113]
[1643454324805,15.08,96.64,96.562,2.85820113]
[1643454325007,6.0,96.63,96.563,8.12137692]
[1643454325407,6.0,96.629,96.563,8.12137692]
[1643454325808,0.25,96.628,96.563,8.12137692]
[1643454326208,6.0,96.629,96.563,8.12137692]
[1643454326606,6.0,96.629,96.564,0.25]
[1643454326807,0.25,96.628,96.564,0.25]
[1643454327808,0.25,96.628,96.563,8.12137692]
[1643454328630,0.25,96.628,96.55,15.531]
[1643454328832,0.25,96.628,96.53,15.534]
[1643454329034,6.0,96.62,96.531,2.87460871]
[1643454329435,6.0,96.618,96.532,0.25]
[1643454329634,6.0,96.618,96.532,9.78064742]
[1643454329635,44.37381819,96.617,96.532,9.78064742]
[1643454329834,44.62381819,96.617,96.532,9.78064742]
[1643454330033,6.0,96.607,96.532,9.78064742]
[1643454330633,6.0,96.606,96.532,9.78064742]
[1643454333038,6.0,96.606,96.532,9.53064742]
[1643454333838,0.25,96.605,96.532,9.53064742]
[1643454334441,0.25,96.605,96.533,0.25]
[1643454335248,6.0,96.606,96.533,0.25]
[1643454336642,6.0,96.606,96.533,102.9]
[1643454337446,6.0,96.606,96.532,9.53064742]
[1643454337844,6.0,96.606,96.533,0.25]
[1643454338643,0.25,96.605,96.532,9.53064742]
[1643454338842,0.25,96.605,96.533,0.25]
[1643454339445,0.25,96.605,96.532,9.53064742]
[1643454340645,0.25,96.605,96.533,0.25]
[1643454341448,6.0,96.606,96.533,0.25]
[1643454341846,23.406,96.616,96.533,0.25]
[1643454342048,6.0,96.606,96.533,0.25]
[1643454345152,6.0,96.606,96.532,9.53064742]
[1643454345351,0.25,96.605,96.532,9.53064742]
[1643454346350,33.04534887,96.599,96.532,9.53064742]
[1643454346549,6.0,96.589,96.532,9.53064742]
[1643454346750,0.25,96.588,96.532,9.53064742]
[1643454347150,6.25,96.588,96.532,9.53064742]
[1643454347755,6.25,96.588,96.531,0.00643728]
[1643454348454,6.0,96.587,96.531,0.00643728]
[1643454348851,38.77279856,96.577,96.531,0.00643728]
[1643454354155,6.0,96.567,96.531,0.00643728]
[1643454357860,6.0,96.566,96.531,0.00643728]
[1643454358859,6.0,96.566,96.54,1.43946974]
[1643454359060,0.25,96.565,96.54,1.43946974]
[1643454359261,0.25,96.565,96.531,0.00643728]
[1643454359463,38.75875034,96.559,96.531,0.00643728]
[1643454359662,23.0611,96.558,96.531,0.00643728]
[1643454359865,6.0,96.549,96.531,0.00643728]
[1643454360063,6.0,96.548,96.531,0.00643728]
[1643454360665,23.0611,96.558,96.531,0.00643728]
[1643454362087,6.0,96.548,96.531,0.00643728]
[1643454369002,23.8967,96.565,96.531,0.00643728]
[1643454369204,15.08,96.59,96.531,0.00643728]
[1643454369401,22.9596,96.595,96.535,1.43946974]
[1643454369601,22.9596,96.595,96.541,1.43946974]
[1643454369802,22.9596,96.595,96.543,1.43946974]
[1643454370001,42.77510644,96.594,96.544,8.67579496]
[1643454370201,42.77510644,96.594,96.544,10.1152647]
[1643454370406,6.0,96.584,96.549,1.43946974]
[1643454370808,42.77510644,96.594,96.55,0.25]
[1643454371004,42.77510644,96.594,96.55,1.68946974]
[1643454371201,42.77510644,96.594,96.551,1.43946974]
[1643454371405,42.77510644,96.594,96.552,0.25]
[1643454371604,42.77510644,96.594,96.551,1.43946974]
[1643454371805,42.77510644,96.594,96.552,0.25]
[1643454372003,6.0,96.584,96.552,0.25]
[1643454372403,6.0,96.584,96.552,1.68946974]
[1643454374407,6.0,96.584,96.552,1.43946974]
[1643454374608,6.0,96.584,96.548,1.43946974]
[1643454375009,6.0,96.584,96.544,1.43946974]
[1643454375208,6.0,96.584,96.545,1.43946974]
[1643454375409,6.0,96.584,96.547,1.43946974]
[1643454375608,6.0,96.584,96.55,1.43946974]
[1643454375809,15.536,96.63,96.552,1.43946974]
[1643454376012,15.08,96.66,96.562,6.0]
[1643454376308,46.6328,96.659,96.575,1.43946974]
[1643454376510,24.6454,96.69,96.586,1.43946974]
[1643454376707,24.6454,96.69,96.585,6.0]
[1643454376708,46.6328,96.689,96.596,1.43946974]
[1643454376908,33.96706716,96.688,96.599,1.43946974]
[1643454377308,33.96706716,96.688,96.6,0.25]
[1643454377610,33.96706716,96.688,96.602,1.43946974]
[1643454377810,6.0,96.678,96.603,0.25]
[1643454378007,6.0,96.678,96.603,11.01]
[1643454379709,6.0,96.678,96.603,0.25]
[1643454379910,0.25,96.677,96.603,0.25]
[1643454380112,25.2412,96.677,96.589,0.25]
[1643454380313,25.2412,96.677,96.585,0.25]
[1643454380512,6.0,96.667,96.585,0.25]
[1643454380712,6.0,96.667,96.584,0.25]
[1643454380912,43.59588022,96.666,96.584,9.71429228]
[1643454381116,43.59588022,96.666,96.584,9.46429228]
[1643454381312,23.9485,96.665,96.585,0.25]
[1643454381516,23.9485,96.665,96.584,9.46429228]
[1643454381714,0.25,96.664,96.584,9.46429228]
[1643454382816,0.25,96.664,96.59,15.524]
[1643454383219,0.25,96.664,96.591,0.25]
[1643454384117,23.9485,96.665,96.591,0.25]
[1643454384520,24.6454,96.69,96.6,21.523]
[1643454384720,23.8544,96.723,96.6,36.603]
[1643454384721,24.7833,96.705,96.6,36.603]
[1643454384921,24.7833,96.705,96.603,61.54]
[1643454385121,15.5794,96.731,96.613,6.0]
[1643454385324,112.8,96.746,96.614,103.15]
[1643454385524,45.75613052,96.72,96.624,6.0]
[1643454385829,45.75613052,96.72,96.64,15.517]
[1643454386023,6.0,96.71,96.64,15.517]
[1643454386424,6.0,96.71,96.641,0.25]
[1643454386823,23.6043,96.719,96.641,3.16888176]
[1643454387024,23.6043,96.719,96.642,2.91888176]
[1643454387225,23.6043,96.719,96.643,11.15029733]
[1643454387424,23.6043,96.719,96.643,11.40029733]
[1643454387725,23.6043,96.719,96.643,14.31917909]
[1643454388349,23.6043,96.719,96.643,11.40029733]
[1643454388551,23.6043,96.719,96.643,11.15029733]
[1643454388751,6.0,96.71,96.643,11.15029733]
[1643454388950,6.0,96.71,96.64,15.517]
[1643454389149,0.25,96.709,96.64,15.517]
[1643454389550,0.25,96.709,96.629,2.91888176]
[1643454389849,6.0,96.71,96.63,10.28656479]
[1643454390050,6.0,96.71,96.631,102.9]
[1643454390251,6.0,96.71,96.631,105.81888176]
[1643454390450,6.0,96.71,96.632,2.91888176]
[1643454391151,23.6043,96.719,96.632,2.91888176]
[1643454391354,23.6043,96.719,96.633,0.25]
[1643454391651,23.6043,96.719,96.634,2.91888176]
[1643454391950,23.6043,96.719,96.635,0.25]
[1643454393054,6.0,96.71,96.61,15.521]
[1643454393258,0.25,96.709,96.611,0.25]
[1643454393456,0.25,96.709,96.61,15.521]
[1643454393958,25.0984,96.709,96.611,11.47210038]
[1643454394354,6.0,96.7,96.611,11.47210038]
[1643454394554,23.8825,96.699,96.611,11.47210038]
[1643454394758,24.1325,96.699,96.612,0.25]
[1643454394956,6.0,96.69,96.612,0.25]
[1643454395159,32.84752427,96.689,96.612,0.25]
[1643454396560,32.84752427,96.689,96.611,11.47210038]
[1643454396759,6.0,96.68,96.611,11.47210038]
[1643454397559,6.0,96.68,96.61,15.521]
[1643454397760,6.0,96.68,96.611,0.25]
[1643454398561,6.0,96.68,96.611,9.65215781]
[1643454398760,32.84752427,96.689,96.611,9.65215781]
[1643454401662,6.0,96.68,96.611,9.65215781]
[1643454403165,6.0,96.68,96.612,102.9]
[1643454403363,6.0,96.68,96.613,0.25]
[1643454403863,6.0,96.68,96.613,1.68126907]
[1643454404062,32.84752427,96.689,96.613,1.68126907]
[1643454404262,32.84752427,96.689,96.615,1.43126907]
[1643454404466,32.84752427,96.689,96.621,102.9]
[1643454404663,32.84752427,96.689,96.62,6.0]
[1643454404963,32.84752427,96.689,96.621,0.25]
[1643454405764,32.84752427,96.689,96.62,6.0]
[1643454406365,32.84752427,96.689,96.622,1.43126907]
[1643454406765,6.0,96.68,96.622,1.43126907]
[1643454406967,6.0,96.68,96.618,1.43126907]
[1643454407165,32.84752427,96.689,96.618,1.43126907]
[1643454407567,6.0,96.68,96.618,1.43126907]
[1643454407766,32.84752427,96.689,96.621,1.43126907]
[1643454407966,32.84752427,96.689,96.624,1.43126907]
[1643454408168,6.0,96.68,96.624,1.43126907]
[1643454408367,6.0,96.68,96.625,0.25]
[1643454408666,0.25,96.679,96.624,1.43126907]
[1643454408866,6.0,96.68,96.625,0.25]
[1643454409872,6.0,96.68,96.618,0.25]
[1643454410068,0.25,96.679,96.618,0.25]
[1643454410275,0.25,96.679,96.617,0.25]
[1643454410468,0.25,96.679,96.62,15.519]
[1643454410869,0.25,96.679,96.621,0.25]
[1643454411268,6.0,96.68,96.621,0.25]
[1643454411469,32.84752427,96.689,96.622,2.91888176]
[1643454411767,6.0,96.68,96.623,0.25]
[1643454411972,6.0,96.68,96.623,1.43126907]
[1643454412172,6.0,96.67,96.621,0.25]
[1643454412469,32.84752427,96.689,96.624,1.43126907]
[1643454412668,6.0,96.68,96.626,1.43126907]
[1643454412871,6.0,96.68,96.627,0.25]
[1643454413869,0.25,96.679,96.623,1.43126907]
[1643454414068,6.0,96.68,96.617,1.43126907]
[1643454414269,0.25,96.679,96.617,1.43126907]
[1643454414472,0.25,96.679,96.618,1.43126907]
[1643454414669,6.0,96.68,96.619,1.43126907]
[1643454415271,6.0,96.68,96.621,1.43126907]
[1643454415470,6.0,96.68,96.619,1.43126907]
[1643454415870,6.0,96.68,96.62,1.68126907]
[1643454416074,6.0,96.68,96.623,1.43126907]
[1643454416275,6.0,96.68,96.625,1.43126907]
[1643454416472,6.0,96.68,96.624,1.43126907]
[1643454417271,6.0,96.68,96.623,1.43126907]
[1643454417872,6.0,96.68,96.624,1.43126907]
[1643454418273,6.0,96.68,96.625,1.68126907]
[1643454418574,6.0,96.68,96.625,0.25]
[1643454419384,6.0,96.68,96.626,2.92495667]
[1643454419578,6.0,96.68,96.629,1.43126907]
[1643454419876,6.0,96.68,96.63,0.25]
[1643454420981,6.0,96.68,96.631,1.43126907]
[1643454421376,6.0,96.68,96.634,1.43126907]
[1643454421776,6.0,96.68,96.635,0.25]
[1643454422797,6.0,96.68,96.632,0.25]
[1643454423898,6.0,96.68,96.632,1.68126907]
[1643454424099,6.0,96.68,96.632,1.43126907]
[1643454424399,6.0,96.68,96.636,1.43126907]
[1643454424800,32.84752427,96.689,96.637,0.25]
[1643454425198,32.84752427,96.689,96.61,4.52938355]
[1643454425398,23.8825,96.699,96.637,0.25]
[1643454425803,23.8825,96.699,96.638,2.92495667]
[1643454426101,23.8825,96.699,96.64,21.516]
[1643454426500,24.8484,96.709,96.641,3.25574874]
[1643454426899,24.8484,96.709,96.65,6.0]
[1643454427402,37.06180738,96.722,96.651,3.16705439]
[1643454427800,0.25,96.721,96.651,3.16705439]
[1643454428199,23.7109,96.721,96.651,3.16705439]
[1643454428701,23.7109,96.721,96.651,2.91705439]
[1643454428901,6.0,96.72,96.641,0.33079207]
[1643454429102,6.0,96.72,96.651,2.91705439]
[1643454430103,6.0,96.72,96.652,0.25]
[1643454430506,6.0,96.72,96.653,2.91705439]
[1643454430916,6.0,96.72,96.654,0.25]
[1643454431708,6.0,96.72,96.655,2.91705439]
[1643454431910,23.7109,96.721,96.656,2.10566504]
[1643454432108,6.0,96.72,96.656,2.10566504]
[1643454433912,23.7109,96.721,96.66,6.0]
[1643454434111,24.439,96.746,96.661,103.15]